[Event "41st Amateur D7"]
[Site "ChessGUI4"]
[Date "2013.07.04"]
[Round "4.1"]
[White "Tigran 2.3 64-bit"]
[Black "Carballo 0.8"]
[Result "1-0"]
[BlackElo "2273"]
[ECO "D02"]
[EventDate "2013.??.??"]
[TimeControl "40/1500:40/1500:40/1500"]
[WhiteElo "2289"]

{ i5 Quad } 1.d4 { [%eval 0,1] [%emt 0:00:00] } 1...d5
{ [%eval 0,1] [%emt 0:00:00] } 2.Bf4 { [%eval 0,1] [%emt 0:00:00] } 2...Nf6
{ [%eval 0,1] [%emt 0:00:00] } 3.e3 { [%eval 0,1] [%emt 0:00:00] } 3...c5
{ [%eval 0,1] [%emt 0:00:00] } 4.c3 { [%eval 0,1] [%emt 0:00:00] } 4...Nc6
{ [%eval 0,1] [%emt 0:00:00] } 5.Nd2 { [%eval 0,1] [%emt 0: 00:00] } 5...e6
{ [%eval 0,1] [%emt 0:00:00] } 6.Ngf3 { [%eval 0,1] [%emt 0:00:00] } 6...Bd6
{ [%eval 0,1] [%emt 0:00:00] } 7.Bg3 { [%eval 0,1] [%emt 0:00:00] } 7...O-O
{ [%eval 0,1] [%emt 0:00:00] } 8.Bd3 { [%eval 0,1] [%emt 0:00:00] } 8...b6
{ [%eval 0,1] [%emt 0:00:00] } 9.O-O { [%eval -5,12] [%emt 0:00:42] } 9...Bb7
{ [%eval 4,12] [%emt 0:00:37] (Bxg3) } 10.Ne5
{ [%eval 9,13] [%emt 0:00:42] (a4) } 10...c4
{ [%eval 9,12] [%emt 0:00:36] (Rc8) } 11.Bc2
{ [%eval 12,12] [%emt 0:00:42] (Bc2) } 11...Bxe5
{ [%eval 4,13] [%emt 0:00:35] (Qc7) } 12.dxe5
{ [%eval 46,14] [%emt 0:00:41] (dxe5) } 12...Nd7
{ [%eval -3,14] [%emt 0:00:34] (Nd7) } 13.Nf3
{ [%eval 46,13] [%emt 0:00:43] (f4) } 13...Nc5
{ [%eval 17,13] [%emt 0:00:33] (Qb8) } 14.Qb1
{ [%eval 53,12] [%emt 0:00:43] (b4) } 14...g6
{ [%eval 19,14] [%emt 0:00:32] (g6) } 15.b4
{ [%eval 63, 15] [%emt 0:00:43] (b4) } 15...cxb3
{ [%eval 9,15] [%emt 0:00:32] (cxb3) } 16.axb3
{ [%eval 55,14] [%emt 0:00:43] (axb3) } 16...Qc7
{ [%eval 10,13] [%emt 0:00:31] (Qc7) } 17.Re1
{ [%eval 46,13] [%emt 0:00:43] (Qb2) } 17...a5
{ [%eval 22,13] [%emt 0:00:30] (a5) } 18.e4
{ [%eval 45,13] [%emt 0:00:36] (Qb2) } 18...Ne7
{ [%eval 26,14] [%emt 0: 00:29] (dxe4) } 19.exd5
{ [%eval 61,14] [%emt 0:00:44] (exd5) } 19...Nxd5
{ [%eval 30, 13] [%emt 0:00:29] (Nxd5) } 20.Qb2
{ [%eval 55,14] [%emt 0:00:44] (Qb2) } 20...b5
{ [%eval 34,13] [%emt 0:00:28] (Na6) } 21.Nd4
{ [%eval 66,13] [%emt 0:00:44] (Nd4) } 21...b4
{ [%eval 35,13] [%emt 0:00:27] (b4) } 22.c4
{ [%eval 50,14] [%emt 0:00:44] (c4) } 22...Nc3
{ [%eval 40,13] [%emt 0:00:26] (Nc3) } 23.f3
{ [%eval 43,13] [%emt 0: 00:45] (Ne2) } 23...Ba6
{ [%eval 74,13] [%emt 0:00:26] (Rfd8) } 24.Bh4
{ [%eval 45,12] [%emt 0:00:38] (Ne2) } 24...Rfb8
{ [%eval 127,10] [%emt 0:00:25] (Rfd8) } 25.Qc1
{ [%eval 81,11] [%emt 0:00:46] (f4) } 25...Qd7
{ [%eval 75,11] [%emt 0:00:24] (Qd7) } 26.Qe3
{ [%eval 170,13] [%emt 0:00:46] (Qf4) } 26...a4
{ [%eval 102,12] [%emt 0:00:24] (Bb7) } 27.Bf6
{ [%eval 260,13] [%emt 0:00:46] (Bf2) } 27...Qc8
{ [%eval 18,10] [%emt 0:00:23] (Kf8) } 28.Nc6
{ [%eval 588,13] [%emt 0:00:47] (Qh6) } 28...Rb7
{ [%eval -517, 10] [%emt 0:00:23] (Rb7) } 29.Qxc5
{ [%eval 634,13] [%emt 0:00:48] (Qxc5) } 29...h5
{ [%eval -546,12] [%emt 0:00:22] (a3) } 30.Ne7+
{ [%eval 672,14] [%emt 0:00:48] (Ne7) } 30...Rxe7
{ [%eval -587,15] [%emt 0:00:21] (Rxe7) } 31.Bxe7
{ [%eval 677,14] [%emt 0:00:48] (Bxe7) } 31...Qxc5+
{ [%eval -599,14] [%emt 0:00:21] (Qxc5) } 32.Bxc5
{ [%eval 716,16] [%emt 0:00:48] (Bxc5) } 1-0

[Event "41st Amateur D7"]
[Site "ChessGUI4"]
[Date "2013.07.04"]
[Round "4.2"]
[White "FireFly 2.6.0 64-bit"]
[Black "Butcher 1.64 64-bit"]
[Result "1-0"]
[BlackElo "2355"]
[ECO "C10"]
[EventDate "2013.??.??"]
[TimeControl "40/1500:40/1500:40/1500"]
[WhiteElo "2258"]

{ i5 Quad } 1.e4 { [%eval 0,1] [%emt 0:00:00] } 1...e6
{ [%eval 0,1] [%emt 0:00:00] } 2.d4 { [%eval 0,1] [%emt 0:00:00] } 2...d5
{ [%eval 0,1] [%emt 0:00:00] } 3.Nc3 { [%eval 0,1] [%emt 0:00:00] } 3...dxe4
{ [%eval 0,1] [%emt 0:00:00] } 4.Nxe4 { [%eval 0,1] [%emt 0:00:00] } 4...Nd7
{ [%eval 0,1] [%emt 0:00:00] } 5.Nf3 { [%eval 0,1] [%emt 0:00:00] } 5...Ngf6
{ [%eval 0,1] [%emt 0:00:00] } 6.Bg5 { [%eval 0,1] [%emt 0: 00:00] } 6...Be7
{ [%eval 0,1] [%emt 0:00:00] } 7.Nxf6+ { [%eval 0,1] [%emt 0:00:00] }
7...Bxf6 { [%eval 0,1] [%emt 0:00:00] } 8.h4 { [%eval 0,1] [%emt 0:00:00] }
8...O-O { [%eval 0,1] [%emt 0:00:00] } 9.Bd3 { [%eval 26,12] [%emt 0:00:57] }
9...h6 { [%eval 0, 12] [%emt 0:01:06] (c5) } 10.Qe2
{ [%eval 75,12] [%emt 0:00:56] (Qe2) } 10...hxg5
{ [%eval 0,12] [%emt 0:00:59] (Re8) } 11.hxg5
{ [%eval 98,12] [%emt 0:00:46] (hxg5) } 11...Bxg5
{ [%eval 0,12] [%emt 0:00:59] (Bxg5) } 12.Nxg5
{ [%eval 299,12] [%emt 0:01:04] (Nxg5) } 12...Qxg5
{ [%eval 345,14] [%emt 0:01:26] (Qxg5) } 13.Rh5
{ [%eval 358,13] [%emt 0:00:28] (Rh5) } 13...Qxh5
{ [%eval 359,14] [%emt 0:01:03] (Qxh5) } 14.Qxh5
{ [%eval 360,13] [%emt 0:00:28] (Qxh5) } 14...Nf6
{ [%eval 369,14] [%emt 0: 01:02] (Nf6) } 15.Qh2
{ [%eval 404,13] [%emt 0:00:23] (Qh2) } 15...c6
{ [%eval 367,13] [%emt 0:01:00] (Rd8) } 16.O-O-O
{ [%eval 406,13] [%emt 0:00:23] (O-O-O) } 16...Rd8
{ [%eval 406,14] [%emt 0:01:00] (Rd8) } 17.Rh1
{ [%eval 451,13] [%emt 0:00:23] (Rh1) } 17...Kf8
{ [%eval 426,14] [%emt 0:01:42] (Kf8) } 18.Qc7
{ [%eval 487,13] [%emt 0:00:24] (Qc7) } 18...Rd7
{ [%eval 405,13] [%emt 0:00:55] (Rd7) } 19.Rh8+
{ [%eval 533, 13] [%emt 0:00:24] (Rh8) } 19...Ke7
{ [%eval 436,13] [%emt 0:00:54] (Ke7) } 20.Qg3
{ [%eval 558,13] [%emt 0:00:24] (Qg3) } 20...g6
{ [%eval 534,13] [%emt 0:01:31] (g6) } 21.Bxg6
{ [%eval 584,13] [%emt 0:00:24] (Bxg6) } 21...Rxd4
{ [%eval 574,12] [%emt 0: 00:42] (Rxd4) } 22.Qa3+
{ [%eval 595,12] [%emt 0:00:25] (Qa3) } 22...Rd6
{ [%eval 621, 12] [%emt 0:00:41] (Rd6) } 23.Bxf7
{ [%eval 656,12] [%emt 0:00:26] (Bxf7) } 23...b5
{ [%eval 613,11] [%emt 0:00:41] (b5) } 24.Bh5
{ [%eval 804,12] [%emt 0:00:26] (Bh5) } 24...Bb7
{ [%eval 755,13] [%emt 0:01:10] (e5) } 25.Qg3
{ [%eval 876,13] [%emt 0:00:26] (Rxa8) } 25...Rxh8
{ [%eval 703,14] [%emt 0:00:37] (Rxh8) } 26.Qg7+
{ [%eval 949,14] [%emt 0:00:26] (Qg7) } 26...Kd8
{ [%eval 669,8] [%emt 0:00:00] (Kd8) } 27.Qxh8+
{ [%eval 963,14] [%emt 0:00:27] (Qxh8) } 27...Kc7
{ [%eval 764,13] [%emt 0:00:39] (Ng8) } 28.Qxf6
{ [%eval 972,14] [%emt 0:00:27] (Qxf6) } 28...Bc8
{ [%eval 810,13] [%emt 0:00:38] (Bc8) } 29.g4
{ [%eval 1014,13] [%emt 0:00:28] (g4) } 29...b4
{ [%eval 823,12] [%emt 0:00:37] (Rd5) } 30.g5
{ [%eval 1211,13] [%emt 0:00:29] (Bf7) } 30...b3
{ [%eval 1,1] [%emt 0:00:00] (e5) } 31.axb3
{ [%eval 1423,13] [%emt 0:00:29] } 31...c5
{ [%eval 1,1] [%emt 0:00:00] (Rd5) } 32.g6 { [%eval 1707,13] [%emt 0:00:30] }
32...c4 { [%eval 1,1] [%emt 0:00:00] (Rd8) } 33.Qe5
{ [%eval 2408,13] [%emt 0:00:51] } 33...c3
{ [%eval 1,1] [%emt 0:00:00] (c3) } 34.g7 { [%eval 3308,12] [%emt 0:00:40] }
34...cxb2+ { [%eval 1,1] [%emt 0:00:00] (cxb2) } 35.Kxb2
{ [%eval 3008,10] [%emt 0:00:34] } 35...Ba6
{ [%eval 1,1] [%emt 0:00:00] (Bb7) } 36.g8=Q
{ [%eval -31778,9] [%emt 0:00: 02] } 36...Bb7
{ [%eval 1,1] [%emt 0:00:00] (Bc8) } 37.Qgg7+
{ [%eval -31776,7] [%emt 0:00:00] } 37...Kb6
{ [%eval 1,1] [%emt 0:00:00] (Kb6) } 38.Qxd6+
{ [%eval -31774,5] [%emt 0:00:00] } 38...Bc6
{ [%eval 1,1] [%emt 0:00:00] (Bc6) } 39.Qgc7+
{ [%eval -31772,4] [%emt 0:00:00] } 39...Ka6
{ [%eval 1,1] [%emt 0:00:00] (Kb5) } 40.Be2#
{ [%eval -31770,4] [%emt 0:00:00] } 1-0

[Event "41st Amateur D7"]
[Site "ChessGUI4"]
[Date "2013.07.04"]
[Round "4.4"]
[White "Shallow 1.0 64-bit"]
[Black "Waxman 2011"]
[Result "0-1"]
[BlackElo "2256"]
[ECO "E32"]
[EventDate "2013.??.??"]
[TimeControl "40/1500:40/1500:40/1500"]
[WhiteElo "2200"]

{ i5 Quad } 1.d4 { [%eval 0,1] [%emt 0:00:00] } 1...Nf6
{ [%eval 0,1] [%emt 0:00:00] } 2.c4 { [%eval 0,1] [%emt 0:00:00] } 2...e6
{ [%eval 0,1] [%emt 0:00:00] } 3.Nc3 { [%eval 0,1] [%emt 0:00:00] } 3...Bb4
{ [%eval 0,1] [%emt 0:00:00] } 4.Qc2 { [%eval 0, 1] [%emt 0:00:00] } 4...O-O
{ [%eval 0,1] [%emt 0:00:00] } 5.a3 { [%eval 0,1] [%emt 0: 00:00] } 5...Bxc3+
{ [%eval 0,1] [%emt 0:00:00] } 6.Qxc3 { [%eval 0,1] [%emt 0:00:00] } 6...b6
{ [%eval 0,1] [%emt 0:00:00] } 7.Bg5 { [%eval 0,1] [%emt 0:00:00] } 7...c5
{ [%eval 0,1] [%emt 0:00:00] } 8.dxc5 { [%eval 0,1] [%emt 0:00:00] } 8...bxc5
{ [%eval 0,1] [%emt 0:00:00] } 9.Nf3 { [%eval 30,14] [%emt 0:00:42] } 9...Bb7
{ [%eval -43,12] [%emt 0:00:34] (Bb7) } 10.e3
{ [%eval 28,14] [%emt 0:00:42] (e3) } 10...Na6
{ [%eval -40,12] [%emt 0:00:37] (Bxf3) } 11.Ne5
{ [%eval 47,13] [%emt 0:00:42] (Bd3) } 11...h6
{ [%eval -7,12] [%emt 0:00:42] (Nc7) } 12.Bxf6
{ [%eval 56,15] [%emt 0:00:42] (Bxf6) } 12...Qxf6
{ [%eval 13,14] [%emt 0:00:49] (gxf6) } 13.Nxd7
{ [%eval 65,15] [%emt 0:00:42] (Rd1) } 13...Qxc3+
{ [%eval 17,14] [%emt 0:00:11] (Qxc3) } 14.bxc3
{ [%eval 22,16] [%emt 0:00:42] (bxc3) } 14...Rfd8
{ [%eval -12,15] [%emt 0:00:39] (Rfd8) } 15.Ne5
{ [%eval 18,16] [%emt 0:00:42] (O-O-O) } 15...f6
{ [%eval 0,14] [%emt 0:00: 35] (Rab8) } 16.Ng6
{ [%eval 19,15] [%emt 0:00:42] (Nd3) } 16...Rab8
{ [%eval 16,14] [%emt 0:00:34] (Rab8) } 17.Rc1
{ [%eval 13,15] [%emt 0:00:42] (Nf4) } 17...Ba8
{ [%eval 21,14] [%emt 0:00:42] (Be4) } 18.Nf4
{ [%eval 6,14] [%emt 0:00:42] (f3) } 18...Nc7
{ [%eval 25,14] [%emt 0:01:17] (Nc7) } 19.Be2
{ [%eval 2,15] [%emt 0:00:42] (Be2) } 19...e5
{ [%eval 21,14] [%emt 0:00:48] (Rb2) } 20.Nd3
{ [%eval 5,15] [%emt 0: 00:42] (Nd5) } 20...Bxg2
{ [%eval 23,14] [%emt 0:00:47] (Ne6) } 21.Rg1
{ [%eval 65,14] [%emt 0:00:42] (Rg1) } 21...Bh3
{ [%eval 23,14] [%emt 0:00:38] (Be4) } 22.Nxc5
{ [%eval 34,14] [%emt 0:00:42] (Nxc5) } 22...Ne6
{ [%eval 22,14] [%emt 0:00:57] (Ne6) } 23.Ne4
{ [%eval 28,14] [%emt 0:00:42] (Ne4) } 23...Kf8
{ [%eval 28,14] [%emt 0:00:52] (Kf8) } 24.Rd1
{ [%eval 10,14] [%emt 0:00:42] (Rd1) } 24...Rxd1+
{ [%eval 64,15] [%emt 0:00:44] (Rb3) } 25.Bxd1
{ [%eval -15,15] [%emt 0:00:42] (Bxd1) } 25...Rb2
{ [%eval 47, 14] [%emt 0:00:39] (Bf5) } 26.Rg3
{ [%eval -21,14] [%emt 0:00:42] (Rg3) } 26...Bf5
{ [%eval 71,14] [%emt 0:00:33] (Bf5) } 27.Nd6
{ [%eval -25,14] [%emt 0:00:42] (Nd2) } 27...Bd3
{ [%eval 88,14] [%emt 0:00:52] (Nc5) } 28.h4
{ [%eval -24,13] [%emt 0: 00:42] (a4) } 28...Nc5
{ [%eval 124,14] [%emt 0:00:57] (Nc5) } 29.f4
{ [%eval -91,14] [%emt 0:00:42] (f3) } 29...exf4
{ [%eval 142,16] [%emt 0:01:04] (exf4) } 30.exf4
{ [%eval -100,14] [%emt 0:00:42] (exf4) } 30...Rb6
{ [%eval 185,15] [%emt 0:00:41] (Rb6) } 31.Nc8
{ [%eval -165,14] [%emt 0:00:56] (Nc8) } 31...Rc6
{ [%eval 195,16] [%emt 0: 00:59] (Rc6) } 32.Ne7
{ [%eval -168,14] [%emt 0:00:41] (Nxa7) } 32...Kxe7
{ [%eval 209, 15] [%emt 0:00:42] (Re6) } 33.Rxg7+
{ [%eval -215,13] [%emt 0:00:56] (Rxg7) } 33...Ke6
{ [%eval 218,15] [%emt 0:00:43] (Ke6) } 34.Kd2
{ [%eval -226,13] [%emt 0:00:40] (Rxa7) } 34...Bf5
{ [%eval 223,15] [%emt 0:00:31] (Rd6) } 35.Ke3
{ [%eval -219,14] [%emt 0:00:40] (Ke3) } 35...Rd6
{ [%eval 209,16] [%emt 0:01:24] (Ra6) } 36.Be2
{ [%eval -220,15] [%emt 0:00:40] (Be2) } 36...Ra6
{ [%eval 210,16] [%emt 0:00:36] (Ra6) } 37.Rc7
{ [%eval -225,15] [%emt 0:00:40] (Rc7) } 37...Ra5
{ [%eval 218,15] [%emt 0:00: 29] (Ra5) } 38.a4
{ [%eval -226,15] [%emt 0:00:40] (Bd1) } 38...Kd6
{ [%eval 235,15] [%emt 0:00:23] (Ne4) } 39.Rf7
{ [%eval -226,15] [%emt 0:00:40] (Rf7) } 39...Nd7
{ [%eval 254,15] [%emt 0:00:27] (Ke6) } 40.Bd1
{ [%eval -233,14] [%emt 0:00:40] (Bd1) } 40...Rc5
{ [%eval 279,16] [%emt 0:00:22] (Kc5) } 41.Be2
{ [%eval -230,15] [%emt 0:00:37] (Be2) } 41...Be6
{ [%eval 287,17] [%emt 0:00:42] (Be6) } 42.Rh7
{ [%eval -255,15] [%emt 0:00:37] (Rh7) } 42...Bxc4
{ [%eval 275,16] [%emt 0:00:26] (Bxc4) } 43.Rxh6
{ [%eval -308,15] [%emt 0:00:37] (Rxh6) } 43...Bxe2
{ [%eval 270,16] [%emt 0:00:32] (Bxe2) } 44.Kxe2
{ [%eval -308,15] [%emt 0:00:37] (Kxe2) } 44...Rxc3
{ [%eval 266,16] [%emt 0:00:26] (Rxc3) } 45.h5
{ [%eval -308,14] [%emt 0:00:37] (h5) } 45...Rc4
{ [%eval 219,16] [%emt 0:01:03] (Ra3) } 46.Ke3
{ [%eval -314,14] [%emt 0:00:37] (Kf3) } 46...Rxa4
{ [%eval 267,15] [%emt 0:00:22] (Rxa4) } 47.Rh8
{ [%eval -308,13] [%emt 0:00:37] (Rh8) } 47...Ra3+
{ [%eval 269,16] [%emt 0:00:31] (Ke6) } 48.Ke4
{ [%eval -317,13] [%emt 0:00:37] (Kf2) } 48...Ke6
{ [%eval 308,17] [%emt 0:00:53] (a5) } 49.f5+
{ [%eval -325,12] [%emt 0:00:37] (h6) } 49...Kd6
{ [%eval 327,17] [%emt 0:00:22] (Kd6) } 50.h6
{ [%eval -329,13] [%emt 0:00:37] (Kf4) } 50...Rh3
{ [%eval 334, 18] [%emt 0:00:36] (Ra4) } 51.Kf4
{ [%eval -330,14] [%emt 0:00:37] (Kf4) } 51...a5
{ [%eval 337,18] [%emt 0:00:27] (Rh1) } 52.Kg4
{ [%eval -339,14] [%emt 0:01:19] (Kg4) } 52...Rh1
{ [%eval 362,18] [%emt 0:00:47] (Rh1) } 53.h7
{ [%eval -339,13] [%emt 0:00:36] (Kg3) } 53...Kc7
{ [%eval 412,18] [%emt 0:00:38] (a4) } 54.Kg3
{ [%eval -335, 13] [%emt 0:00:36] (Ra8) } 54...Kb7
{ [%eval 482,18] [%emt 0:00:33] (Kd6) } 55.Kg2
{ [%eval -430,14] [%emt 0:00:36] (Re8) } 55...Rh5
{ [%eval 487,19] [%emt 0:00:39] (Rh6) } 56.Kf2
{ [%eval -436,13] [%emt 0:00:36] (Kg3) } 56...Rxf5+
{ [%eval 512,16] [%emt 0: 00:10] (Rxf5) } 57.Kg2
{ [%eval -472,12] [%emt 0:00:36] (Ke3) } 57...Rh5
{ [%eval 574, 17] [%emt 0:00:35] (Rh5) } 58.Kg3
{ [%eval -563,14] [%emt 0:01:17] (Kg3) } 58...a4
{ [%eval 575,18] [%emt 0:00:55] (a4) } 59.Kg4
{ [%eval -563,14] [%emt 0:00:34] (Kg4) } 59...Rh6
{ [%eval 581,18] [%emt 0:00:47] (Rh6) } 60.Re8
{ [%eval -563,13] [%emt 0:00:34] (Re8) } 60...Rxh7
{ [%eval 585,17] [%emt 0:00:14] (Rxh7) } 61.Re4
{ [%eval -564,12] [%emt 0:00:34] (Re2) } 0-1

[Event "41st Amateur D7"]
[Site "ChessGUI4"]
[Date "2013.07.04"]
[Round "4.5"]
[White "MadChess 1.2"]
[Black "ProChess 1.02AD"]
[Result "0-1"]
[BlackElo "2244"]
[ECO "B06"]
[EventDate "2013.??.??"]
[TimeControl "40/1500:40/1500:40/1500"]
[WhiteElo "2200"]

{ i5 Quad } 1.e4 { [%eval 0,1] [%emt 0:00:00] } 1...g6
{ [%eval 0,1] [%emt 0:00:00] } 2.d4 { [%eval 0,1] [%emt 0:00:00] } 2...Bg7
{ [%eval 0,1] [%emt 0:00:00] } 3.Nc3 { [%eval 0,1] [%emt 0:00:00] } 3...c6
{ [%eval 0,1] [%emt 0:00:00] } 4.Bc4 { [%eval 0,1] [%emt 0:00:00] } 4...d6
{ [%eval 0,1] [%emt 0:00:00] } 5.Qf3 { [%eval 0,1] [%emt 0:00: 00] } 5...e6
{ [%eval 0,1] [%emt 0:00:00] } 6.Nge2 { [%eval 0,1] [%emt 0:00:00] } 6...b5
{ [%eval 0,1] [%emt 0:00:00] } 7.Bb3 { [%eval 0,1] [%emt 0:00:00] } 7...a5
{ [%eval 0,1] [%emt 0:00:00] } 8.a3 { [%eval 0,1] [%emt 0:00:00] } 8...Ba6
{ [%eval 0,1] [%emt 0:00: 00] } 9.Be3 { [%eval 54,10] [%emt 0:00:32] }
9...Ne7 { [%eval -67,11] [%emt 0:01:29] (Nf6) } 10.O-O
{ [%eval 71,11] [%emt 0:00:48] (d5) } 10...Nd7
{ [%eval -51,12] [%emt 0: 01:05] (O-O) } 11.Nf4
{ [%eval 47,10] [%emt 0:00:44] (Nf4) } 11...O-O
{ [%eval -50,11] [%emt 0:00:55] (O-O) } 12.Nd3
{ [%eval 51,10] [%emt 0:00:38] (Nd3) } 12...b4
{ [%eval -42,12] [%emt 0:01:43] (b4) } 13.axb4
{ [%eval 35,12] [%emt 0:00:38] (axb4) } 13...axb4
{ [%eval -35,12] [%emt 0:00:36] (Bxd3) } 14.Ne2
{ [%eval 51,11] [%emt 0:00: 37] (Ne2) } 14...c5
{ [%eval -33,12] [%emt 0:01:02] (Bxd3) } 15.Bf4
{ [%eval 22,10] [%emt 0:00:45] (dxc5) } 15...c4
{ [%eval 21,12] [%emt 0:00:29] (Qb6) } 16.Rxa6
{ [%eval 8,12] [%emt 0:00:41] (Bxc4) } 16...Rxa6
{ [%eval 30,13] [%emt 0:00:48] (Rxa6) } 17.Bxc4
{ [%eval 9,12] [%emt 0:00:37] (Bxc4) } 17...Rb6
{ [%eval 26,12] [%emt 0:00:44] (Rb6) } 18.Bg5
{ [%eval 17,11] [%emt 0:00:25] (Bg5) } 18...h6
{ [%eval 31,12] [%emt 0: 00:29] (h6) } 19.Be3
{ [%eval 21,11] [%emt 0:00:31] (Be3) } 19...Qc7
{ [%eval 36,13] [%emt 0:00:58] (Qc7) } 20.Bb3
{ [%eval 24,11] [%emt 0:00:30] (Bb3) } 20...Rb7
{ [%eval 36,12] [%emt 0:04:20] (Rb7) } 21.Nef4
{ [%eval 26,11] [%emt 0:01:00] (Qh3) } 21...e5
{ [%eval 42,13] [%emt 0:00:37] (Nc6) } 22.dxe5
{ [%eval 40,12] [%emt 0: 00:41] (dxe5) } 22...Nxe5
{ [%eval 43,13] [%emt 0:02:04] (Nxe5) } 23.Nxe5
{ [%eval 41, 12] [%emt 0:00:27] (Nxe5) } 23...dxe5
{ [%eval 40,12] [%emt 0:00:16] (dxe5) } 24.Nd3
{ [%eval 56,11] [%emt 0:00:16] (Nd3) } 24...Nc6
{ [%eval 41,11] [%emt 0:01:22] (Nc6) } 25.Qg4
{ [%eval 37,10] [%emt 0:01:19] (Qg4) } 25...Kh7
{ [%eval 41,11] [%emt 0:00:30] (Kh7) } 26.Bd5
{ [%eval 20,10] [%emt 0:01:09] (Nc5) } 26...Rb5
{ [%eval 40,10] [%emt 0: 00:26] (Rb5) } 27.Qg3
{ [%eval 15,10] [%emt 0:00:53] (Bc5) } 27...f5
{ [%eval 70,10] [%emt 0:00:08] (Na5) } 28.exf5
{ [%eval 6,11] [%emt 0:00:45] (Bc4) } 28...Rxd5
{ [%eval 127,11] [%emt 0:00:10] (gxf5) } 29.Qxg6+
{ [%eval 34,13] [%emt 0:00:39] (Qxg6) } 29...Kh8
{ [%eval 123,11] [%emt 0:00:07] (Kh8) } 30.Bxh6
{ [%eval 6,13] [%emt 0:00:51] (Bxh6) } 30...Rf6
{ [%eval 132,11] [%emt 0:00:12] (Rf6) } 31.Bxg7+
{ [%eval 0, 13] [%emt 0:00:24] (Qe8) } 31...Qxg7
{ [%eval 177,11] [%emt 0:00:11] (Qxg7) } 32.Qe8+
{ [%eval -13,13] [%emt 0:00:46] (Qh5) } 32...Kh7
{ [%eval 178,11] [%emt 0:00:17] (Qf8) } 33.Qh5+
{ [%eval -5,12] [%emt 0:00:31] (Qh5) } 33...Qh6
{ [%eval 195,11] [%emt 0:00: 15] (Kg8) } 34.Qxh6+
{ [%eval -44,13] [%emt 0:00:34] (Qf3) } 34...Rxh6
{ [%eval 218,13] [%emt 0:00:09] (Rxh6) } 35.Ne1
{ [%eval -88,14] [%emt 0:00:54] (f4) } 35...Nd4
{ [%eval 245,13] [%emt 0:00:13] (e4) } 36.g4
{ [%eval -103,14] [%emt 0:01:01] (g4) } 36...Rh4
{ [%eval 251,13] [%emt 0:00:08] (Rh4) } 37.f3
{ [%eval -115,14] [%emt 0:00: 28] (h3) } 37...Ne2+
{ [%eval 353,14] [%emt 0:00:05] (Ne2) } 38.Kf2
{ [%eval -216,18] [%emt 0:01:41] (Kf2) } 38...Rxh2+
{ [%eval 397,15] [%emt 0:00:08] (Nf4) } 39.Ke3
{ [%eval -220,17] [%emt 0:01:13] (Ke3) } 39...Nf4
{ [%eval 401,14] [%emt 0:00:10] (Nf4) } 40.Rf2
{ [%eval -210,16] [%emt 0:00:53] (Rf2) } 40...Rxf2
{ [%eval 406,13] [%emt 0:00: 10] (Rxf2) } 41.Kxf2
{ [%eval -257,15] [%emt 0:00:31] (Kxf2) } 41...b3
{ [%eval 458,13] [%emt 0:01:33] (Rd2) } 42.cxb3
{ [%eval -388,16] [%emt 0:01:57] (cxb3) } 42...Rd2+
{ [%eval 508,13] [%emt 0:00:51] (Rd2) } 43.Kg3
{ [%eval -430,15] [%emt 0:00:44] (Kg1) } 43...Kg7
{ [%eval 611,13] [%emt 0:00:58] (Kg7) } 44.g5
{ [%eval -491,16] [%emt 0:01:38] (g5) } 44...Rxb2
{ [%eval 632,13] [%emt 0:01:12] (Re2) } 45.Kg4
{ [%eval -546, 15] [%emt 0:00:35] (b4) } 45...Re2
{ [%eval 694,13] [%emt 0:01:19] (Re2) } 46.f6+
{ [%eval -670,15] [%emt 0:00:41] (f6) } 46...Kg6
{ [%eval 765,14] [%emt 0:00:53] (Kg6) } 47.f7
{ [%eval -818,16] [%emt 0:00:48] (f7) } 0-1